[Event "*** MasterClass Titled Tuesday Blitz"]
[Site "Chess.com"]
[Date "2017.12.12"]
[Round "2"]
[White "ristingho"]
[Black "SharkAnto55"]
[Result "0-1"]
[WhiteElo "2323"]
[BlackElo "2364"]
[TimeControl "180+2"]
[EndTime "13:22:06 PST"]
[Termination "SharkAnto55 won by resignation"]

1. d4 {[%clk 0:03:00.5]} 1... Nf6 {[%clk 0:03:00.4]} 2. Bg5 {[%clk 0:02:57.1]}
2... Ne4 {[%clk 0:03:00]} 3. Bf4 {[%clk 0:02:57.5]} 3... c5 {[%clk 0:03:01.1]}
4. f3 {[%clk 0:02:57.9]} 4... Nf6 {[%clk 0:03:02.5]} 5. dxc5 {[%clk 0:02:58.5]}
5... b6 {[%clk 0:03:03.9]} 6. Nc3 {[%clk 0:02:57.4]} 6... bxc5 {[%clk 0:03:01]}
7. e4 {[%clk 0:02:58.1]} 7... Nc6 {[%clk 0:02:51.2]} 8. Qd2 {[%clk 0:02:57.7]}
8... g6 {[%clk 0:02:35.6]} 9. g4 {[%clk 0:02:34.3]} 9... d6 {[%clk 0:02:28.7]}
10. Bb5 {[%clk 0:02:24.8]} 10... Bd7 {[%clk 0:02:26.8]} 11. g5 {[%clk
0:02:14.1]} 11... Nh5 {[%clk 0:02:24.9]} 12. Be3 {[%clk 0:02:15.3]} 12... Bg7
{[%clk 0:02:18.2]} 13. Nge2 {[%clk 0:02:14.9]} 13... Rb8 {[%clk 0:02:13.6]} 14.
O-O {[%clk 0:01:59.9]} 14... O-O {[%clk 0:01:49.6]} 15. b3 {[%clk 0:01:32.4]}
15... Rxb5 {[%clk 0:01:32.1]} 16. Nxb5 {[%clk 0:01:29]} 16... Bxa1 {[%clk
0:01:34]} 17. Rxa1 {[%clk 0:01:24.5]} 17... Ne5 {[%clk 0:01:34.7]} 18. Kf2
{[%clk 0:00:54.6]} 18... Bxb5 {[%clk 0:01:33.5]} 19. c4 {[%clk 0:00:56.5]} 19...
Bc6 {[%clk 0:01:30.7]} 20. Ng3 {[%clk 0:00:58]} 20... Ng7 {[%clk 0:01:27.2]} 21.
Rd1 {[%clk 0:00:53.4]} 21... f6 {[%clk 0:01:24.4]} 22. gxf6 {[%clk 0:00:46.3]}
22... Rxf6 {[%clk 0:01:24.1]} 23. Bf4 {[%clk 0:00:45.9]} 23... Nxf3 {[%clk
0:00:57.9]} 24. Kxf3 {[%clk 0:00:43]} 24... Ne6 {[%clk 0:00:55.8]} 25. Ne2
{[%clk 0:00:37.9]} 25... Nxf4 {[%clk 0:00:48.5]} 26. Nxf4 {[%clk 0:00:39.8]}
26... e5 {[%clk 0:00:49.8]} 27. Kg2 {[%clk 0:00:30.6]} 27... Bxe4+ {[%clk
0:00:47.3]} 28. Kg1 {[%clk 0:00:27.8]} 28... Rxf4 {[%clk 0:00:46.3]} 0-1

[Event "*** MasterClass Titled Tuesday Blitz"]
[Site "Chess.com"]
[Date "2017.12.12"]
[Round "2"]
[White "Hanging_pointer"]
[Black "BilodeauA"]
[Result "0-1"]
[WhiteElo "2289"]
[BlackElo "2739"]
[TimeControl "180+2"]
[EndTime "13:22:22 PST"]
[Termination "BilodeauA won by resignation"]

1. e4 {[%clk 0:03:01.8]} 1... c5 {[%clk 0:02:51.7]} 2. Nf3 {[%clk 0:03:03]} 2...
Nc6 {[%clk 0:02:52.3]} 3. d4 {[%clk 0:03:04.1]} 3... cxd4 {[%clk 0:02:54]} 4.
Nxd4 {[%clk 0:03:06]} 4... Nf6 {[%clk 0:02:55.4]} 5. Nc3 {[%clk 0:03:07]} 5...
d6 {[%clk 0:02:55.9]} 6. Bg5 {[%clk 0:03:07.8]} 6... e6 {[%clk 0:02:56.5]} 7.
Qd2 {[%clk 0:03:08.8]} 7... a6 {[%clk 0:02:57.9]} 8. O-O-O {[%clk 0:03:09.8]}
8... Bd7 {[%clk 0:02:59.3]} 9. f4 {[%clk 0:03:11.1]} 9... b5 {[%clk 0:02:59.2]}
10. Bxf6 {[%clk 0:02:48]} 10... gxf6 {[%clk 0:02:57.3]} 11. Kb1 {[%clk
0:02:48.2]} 11... Qb6 {[%clk 0:02:56.9]} 12. Nxc6 {[%clk 0:02:48.7]} 12... Bxc6
{[%clk 0:02:58.7]} 13. f5 {[%clk 0:02:47.8]} 13... h5 {[%clk 0:02:57]} 14. Bd3
{[%clk 0:02:43.7]} 14... Bh6 {[%clk 0:02:55.2]} 15. Qe1 {[%clk 0:02:44.5]} 15...
Bf4 {[%clk 0:02:55.8]} 16. Rf1 {[%clk 0:02:32]} 16... Be5 {[%clk 0:02:52.3]} 17.
Ne2 {[%clk 0:02:24.9]} 17... Ke7 {[%clk 0:02:40.6]} 18. Qh4 {[%clk 0:01:53.4]}
18... Rag8 {[%clk 0:02:40.2]} 19. Qh3 {[%clk 0:01:29.1]} 19... Rg4 {[%clk
0:02:32.5]} 20. Qf3 {[%clk 0:00:57.6]} 20... Rhg8 {[%clk 0:02:27.4]} 21. g3
{[%clk 0:00:57.7]} 21... h4 {[%clk 0:02:25.8]} 22. h3 {[%clk 0:00:55.6]} 22...
Rxg3 {[%clk 0:02:27]} 23. Nxg3 {[%clk 0:00:56.6]} 23... Rxg3 {[%clk 0:02:28.9]}
24. Qh5 {[%clk 0:00:48.2]} 24... Qd4 {[%clk 0:02:27.2]} 25. c3 {[%clk
0:00:43.7]} 25... Qe3 {[%clk 0:02:20.1]} 26. fxe6 {[%clk 0:00:37.2]} 26... fxe6
{[%clk 0:02:20.8]} 27. Qh7+ {[%clk 0:00:35.3]} 27... Kd8 {[%clk 0:02:22.3]} 28.
Qh8+ {[%clk 0:00:35.1]} 28... Kc7 {[%clk 0:02:22.5]} 29. Qxh4 {[%clk 0:00:26.7]}
29... Rxh3 {[%clk 0:02:21.4]} 30. Qg4 {[%clk 0:00:27.9]} 30... Kd7 {[%clk
0:01:48.9]} 31. Qg7+ {[%clk 0:00:22.8]} 31... Kc8 {[%clk 0:01:44.1]} 32. Qg8+
{[%clk 0:00:23.4]} 32... Kb7 {[%clk 0:01:45.2]} 33. Qxe6 {[%clk 0:00:23]} 33...
Bxe4 {[%clk 0:01:46.8]} 34. Qd7+ {[%clk 0:00:19.5]} 34... Kb6 {[%clk 0:01:48.1]}
35. Qd8+ {[%clk 0:00:19.4]} 35... Ka7 {[%clk 0:01:49.3]} 36. Qc7+ {[%clk
0:00:18.6]} 36... Bb7 {[%clk 0:01:48.8]} 37. Rg1 {[%clk 0:00:14.1]} 37... Qb6
{[%clk 0:01:47.8]} 38. Qd7 {[%clk 0:00:14]} 38... Rxd3 {[%clk 0:01:47.8]} 39.
Rxd3 {[%clk 0:00:12.8]} 39... Qxg1+ {[%clk 0:01:48.6]} 40. Kc2 {[%clk
0:00:14.7]} 40... Qg2+ {[%clk 0:01:48.6]} 41. Kb3 {[%clk 0:00:13.7]} 41... f5
{[%clk 0:01:48.1]} 42. Rd1 {[%clk 0:00:09.1]} 42... f4 {[%clk 0:01:48.7]} 43.
Qh7 {[%clk 0:00:08.5]} 43... f3 {[%clk 0:01:47.5]} 44. Qd3 {[%clk 0:00:07.7]}
44... f2 {[%clk 0:01:46.6]} 45. Qe3+ {[%clk 0:00:09]} 45... Ka8 {[%clk
0:01:47.3]} 46. Rd2 {[%clk 0:00:03.7]} 0-1

[Event "*** MasterClass Titled Tuesday Blitz"]
[Site "Chess.com"]
[Date "2017.12.12"]
[Round "2"]
[White "FMJoseHerrera"]
[Black "RoelandPruijssers"]
[Result "1-0"]
[WhiteElo "2446"]
[BlackElo "2444"]
[TimeControl "180+2"]
[EndTime "13:22:36 PST"]
[Termination "FMJoseHerrera won by resignation"]

1. Nf3 {[%clk 0:03:00.7]} 1... Nf6 {[%clk 0:02:59.4]} 2. g3 {[%clk 0:03:01.4]}
2... g6 {[%clk 0:03:00.7]} 3. Bg2 {[%clk 0:03:02.1]} 3... Bg7 {[%clk 0:03:02.6]}
4. d3 {[%clk 0:03:03.2]} 4... O-O {[%clk 0:03:04.5]} 5. Nc3 {[%clk 0:03:04.2]}
5... d6 {[%clk 0:03:05.8]} 6. e4 {[%clk 0:03:04.3]} 6... c5 {[%clk 0:03:06]} 7.
Be3 {[%clk 0:03:02.2]} 7... Nc6 {[%clk 0:03:07.1]} 8. Qd2 {[%clk 0:03:03]} 8...
Ng4 {[%clk 0:03:08.2]} 9. h4 {[%clk 0:03:01.9]} 9... Nxe3 {[%clk 0:03:08.2]} 10.
fxe3 {[%clk 0:03:03.8]} 10... Bg4 {[%clk 0:03:08]} 11. O-O {[%clk 0:02:52.3]}
11... Bxf3 {[%clk 0:02:56.4]} 12. Rxf3 {[%clk 0:02:47]} 12... Ne5 {[%clk
0:02:54.3]} 13. Rff1 {[%clk 0:02:43.5]} 13... e6 {[%clk 0:02:49.9]} 14. Nd1
{[%clk 0:02:33.3]} 14... d5 {[%clk 0:02:45.3]} 15. exd5 {[%clk 0:02:32.5]} 15...
exd5 {[%clk 0:02:47.2]} 16. d4 {[%clk 0:02:13.5]} 16... Nc4 {[%clk 0:02:44]} 17.
Qf2 {[%clk 0:02:07.7]} 17... Rc8 {[%clk 0:02:26.5]} 18. c3 {[%clk 0:02:06]}
18... Qd7 {[%clk 0:02:01.4]} 19. Kh2 {[%clk 0:01:42.3]} 19... b6 {[%clk
0:01:54.6]} 20. h5 {[%clk 0:01:11.9]} 20... Rce8 {[%clk 0:01:34.1]} 21. b3
{[%clk 0:01:03.9]} 21... Na5 {[%clk 0:01:15.8]} 22. Nb2 {[%clk 0:01:04.3]} 22...
Nc6 {[%clk 0:01:15.4]} 23. Nd3 {[%clk 0:01:03.6]} 23... Qg4 {[%clk 0:01:03.7]}
24. Bf3 {[%clk 0:00:51]} 24... Qg5 {[%clk 0:00:55.9]} 25. Nf4 {[%clk 0:00:52.3]}
25... Ne7 {[%clk 0:00:52.7]} 26. Rae1 {[%clk 0:00:42]} 26... Nf5 {[%clk
0:00:47.7]} 27. Bxd5 {[%clk 0:00:36.3]} 27... gxh5 {[%clk 0:00:45.1]} 28. Nh3
{[%clk 0:00:31.8]} 28... Qd8 {[%clk 0:00:15.6]} 29. Qxf5 {[%clk 0:00:32.2]}
29... h6 {[%clk 0:00:15.7]} 30. Qxh5 {[%clk 0:00:28.6]} 30... Kh8 {[%clk
0:00:15.4]} 31. Nf4 {[%clk 0:00:25.9]} 31... cxd4 {[%clk 0:00:16.2]} 32. exd4
{[%clk 0:00:25.4]} 32... Rxe1 {[%clk 0:00:16.5]} 33. Rxe1 {[%clk 0:00:27.3]}
33... b5 {[%clk 0:00:17.1]} 34. Bxf7 {[%clk 0:00:26.6]} 34... Kh7 {[%clk
0:00:17.6]} 35. Qf5+ {[%clk 0:00:26.6]} 1-0

[Event "*** MasterClass Titled Tuesday Blitz"]
[Site "Chess.com"]
[Date "2017.12.12"]
[Round "2"]
[White "nicegg"]
[Black "GM-2023"]
[Result "0-1"]
[WhiteElo "1977"]
[BlackElo "2039"]
[TimeControl "180+2"]
[EndTime "13:22:44 PST"]
[Termination "GM-2023 won on time"]

1. e4 {[%clk 0:03:01.9]} 1... e5 {[%clk 0:03:00.8]} 2. f4 {[%clk 0:03:02.1]}
2... exf4 {[%clk 0:03:01]} 3. Qf3 {[%clk 0:03:03.1]} 3... g5 {[%clk 0:02:59.6]}
4. h4 {[%clk 0:03:02.5]} 4... Be7 {[%clk 0:02:18.4]} 5. hxg5 {[%clk 0:03:02.5]}
5... Bxg5 {[%clk 0:02:19.6]} 6. Ne2 {[%clk 0:03:03.4]} 6... Nc6 {[%clk
0:02:12.3]} 7. d4 {[%clk 0:02:55.4]} 7... Nf6 {[%clk 0:01:58.3]} 8. e5 {[%clk
0:02:43.1]} 8... Ng8 {[%clk 0:01:58.5]} 9. Bxf4 {[%clk 0:02:37.6]} 9... d6
{[%clk 0:01:48.7]} 10. exd6 {[%clk 0:02:32.9]} 10... Bxf4 {[%clk 0:01:45.8]} 11.
Qxf4 {[%clk 0:02:26.5]} 11... Qxd6 {[%clk 0:01:46.4]} 12. Qxd6 {[%clk
0:02:02.1]} 12... cxd6 {[%clk 0:01:48.3]} 13. Nbc3 {[%clk 0:02:02.8]} 13... Bf5
{[%clk 0:01:47.7]} 14. O-O-O {[%clk 0:02:01.7]} 14... Nb4 {[%clk 0:01:48]} 15.
Ng3 {[%clk 0:01:49]} 15... Bxc2 {[%clk 0:01:44.3]} 16. Re1+ {[%clk 0:01:47.6]}
16... Kd8 {[%clk 0:01:44.8]} 17. Kd2 {[%clk 0:01:16.3]} 17... Bg6 {[%clk
0:01:39.5]} 18. Bb5 {[%clk 0:01:04.2]} 18... Nf6 {[%clk 0:01:38.1]} 19. a3
{[%clk 0:01:04.2]} 19... Nbd5 {[%clk 0:01:16.6]} 20. Rhf1 {[%clk 0:00:55.9]}
20... a6 {[%clk 0:00:52.2]} 21. Bc4 {[%clk 0:00:51.6]} 21... Nxc3 {[%clk
0:00:52.9]} 22. bxc3 {[%clk 0:00:50.7]} 22... d5 {[%clk 0:00:53.7]} 23. Rxf6
{[%clk 0:00:39.2]} 23... dxc4 {[%clk 0:00:54.5]} 24. Nf5 {[%clk 0:00:36.8]}
24... Re8 {[%clk 0:00:43.4]} 25. Re5 {[%clk 0:00:12]} 25... Rxe5 {[%clk
0:00:32.1]} 26. dxe5 {[%clk 0:00:11.7]} 26... Bxf5 {[%clk 0:00:23.4]} 27. Rxf5
{[%clk 0:00:12.3]} 27... Ke7 {[%clk 0:00:25.3]} 28. Rh5 {[%clk 0:00:04.2]} 28...
Rd8+ {[%clk 0:00:22.4]} 0-1

[Event "*** MasterClass Titled Tuesday Blitz"]
[Site "Chess.com"]
[Date "2017.12.12"]
[Round "2"]
[White "ENEASZ"]
[Black "evgenysharapov"]
[Result "1/2-1/2"]
[WhiteElo "2401"]
[BlackElo "2323"]
[TimeControl "180+2"]
[EndTime "13:22:47 PST"]
[Termination "Game drawn by agreement"]

1. e4 {[%clk 0:03:01.9]} 1... c5 {[%clk 0:03:00.4]} 2. c3 {[%clk 0:03:02.9]}
2... Nf6 {[%clk 0:02:59.3]} 3. e5 {[%clk 0:03:04]} 3... Nd5 {[%clk 0:02:59.8]}
4. d4 {[%clk 0:03:05.9]} 4... cxd4 {[%clk 0:03:00.4]} 5. Nf3 {[%clk 0:03:07.6]}
5... Nc6 {[%clk 0:03:00.7]} 6. Bc4 {[%clk 0:03:05.8]} 6... Nb6 {[%clk
0:02:59.4]} 7. Bb3 {[%clk 0:03:06.4]} 7... d5 {[%clk 0:02:56.8]} 8. exd6 {[%clk
0:03:07.4]} 8... exd6 {[%clk 0:02:53.7]} 9. O-O {[%clk 0:02:49.1]} 9... Be7
{[%clk 0:02:51.8]} 10. Nxd4 {[%clk 0:02:38.9]} 10... O-O {[%clk 0:02:51.8]} 11.
Bf4 {[%clk 0:02:35.5]} 11... d5 {[%clk 0:02:49.6]} 12. Nxc6 {[%clk 0:02:28]}
12... bxc6 {[%clk 0:02:49.8]} 13. Bc2 {[%clk 0:02:29.8]} 13... Bf6 {[%clk
0:02:45.2]} 14. Re1 {[%clk 0:02:27]} 14... Be6 {[%clk 0:02:40.3]} 15. Qd3 {[%clk
0:02:22.7]} 15... g6 {[%clk 0:02:39.4]} 16. Bh6 {[%clk 0:02:23.3]} 16... Re8
{[%clk 0:02:38.8]} 17. Na3 {[%clk 0:02:06.5]} 17... Bg7 {[%clk 0:02:32.5]} 18.
Bxg7 {[%clk 0:02:06.5]} 18... Kxg7 {[%clk 0:02:33.1]} 19. Rad1 {[%clk
0:02:04.9]} 19... Qf6 {[%clk 0:02:28.5]} 20. Qd2 {[%clk 0:01:47.3]} 20... Re7
{[%clk 0:02:19.9]} 21. Re3 {[%clk 0:01:41.7]} 21... Rae8 {[%clk 0:02:02]} 22.
Rde1 {[%clk 0:01:42]} 22... Bd7 {[%clk 0:01:50.8]} 23. Rxe7 {[%clk 0:01:33.3]}
23... Rxe7 {[%clk 0:01:51.2]} 24. Rxe7 {[%clk 0:01:21.4]} 24... Qxe7 {[%clk
0:01:51.4]} 25. b4 {[%clk 0:01:17.9]} 25... Qe5 {[%clk 0:01:37.5]} 26. Qd4
{[%clk 0:01:12]} 26... Qxd4 {[%clk 0:01:32.3]} 27. cxd4 {[%clk 0:01:13.9]} 27...
Kf6 {[%clk 0:01:31.8]} 28. f3 {[%clk 0:01:07.8]} 28... Bf5 {[%clk 0:01:31.9]}
29. Bd1 {[%clk 0:01:09.1]} 29... Nc4 {[%clk 0:01:25]} 30. Nc2 {[%clk 0:00:47.9]}
30... Bxc2 {[%clk 0:00:50.6]} 31. Bxc2 {[%clk 0:00:49.8]} 31... Na3 {[%clk
0:00:47]} 32. Bd3 {[%clk 0:00:48.6]} 32... Nb5 {[%clk 0:00:46.2]} 33. Bxb5
{[%clk 0:00:48.5]} 33... cxb5 {[%clk 0:00:46.8]} 34. Kf2 {[%clk 0:00:50.2]}
34... Kf5 {[%clk 0:00:46.6]} 35. Ke3 {[%clk 0:00:49.6]} 35... h5 {[%clk
0:00:45.1]} 36. g3 {[%clk 0:00:33.1]} 36... g5 {[%clk 0:00:43.4]} 37. h3 {[%clk
0:00:32.4]} 37... Kg6 {[%clk 0:00:39.5]} 38. g4 {[%clk 0:00:32]} 1/2-1/2

[Event "*** MasterClass Titled Tuesday Blitz"]
[Site "Chess.com"]
[Date "2017.12.12"]
[Round "2"]
[White "rubhani"]
[Black "pKiLz5Rn9b"]
[Result "1-0"]
[WhiteElo "2364"]
[BlackElo "2610"]
[TimeControl "180+2"]
[EndTime "13:22:55 PST"]
[Termination "rubhani won by resignation"]

1. Nf3 {[%clk 0:03:00.9]} 1... Nf6 {[%clk 0:03:00.6]} 2. d4 {[%clk 0:03:01.7]}
2... e6 {[%clk 0:03:01.8]} 3. c4 {[%clk 0:03:02.6]} 3... b6 {[%clk 0:03:02.9]}
4. Nc3 {[%clk 0:03:03.4]} 4... Bb7 {[%clk 0:03:03.3]} 5. Bf4 {[%clk 0:03:04.1]}
5... g6 {[%clk 0:02:52.8]} 6. e3 {[%clk 0:03:04.7]} 6... Bg7 {[%clk 0:02:53.5]}
7. Be2 {[%clk 0:03:04.7]} 7... O-O {[%clk 0:02:54.8]} 8. O-O {[%clk 0:03:05.8]}
8... d5 {[%clk 0:02:55.3]} 9. cxd5 {[%clk 0:03:05]} 9... exd5 {[%clk 0:02:53.5]}
10. Rc1 {[%clk 0:03:05.5]} 10... c6 {[%clk 0:02:52.1]} 11. h3 {[%clk 0:03:04.5]}
11... Qe7 {[%clk 0:02:49.7]} 12. Ne5 {[%clk 0:03:04.1]} 12... Nbd7 {[%clk
0:02:48.2]} 13. Nxd7 {[%clk 0:02:59]} 13... Nxd7 {[%clk 0:02:45.5]} 14. Qb3
{[%clk 0:02:51.4]} 14... Rfd8 {[%clk 0:02:42.2]} 15. Rfe1 {[%clk 0:02:50.8]}
15... Rac8 {[%clk 0:02:41]} 16. Qa4 {[%clk 0:02:48.4]} 16... a5 {[%clk
0:02:34.5]} 17. a3 {[%clk 0:02:44.8]} 17... Ra8 {[%clk 0:02:33.6]} 18. Qb3
{[%clk 0:02:43.8]} 18... Rdc8 {[%clk 0:01:38]} 19. Bf3 {[%clk 0:02:34.9]} 19...
b5 {[%clk 0:01:29.3]} 20. e4 {[%clk 0:02:34.5]} 20... dxe4 {[%clk 0:01:27.8]}
21. Nxe4 {[%clk 0:02:35]} 21... Bxd4 {[%clk 0:01:05.1]} 22. Nd6 {[%clk
0:02:04.5]} 22... Qf6 {[%clk 0:01:05.6]} 23. Nxc8 {[%clk 0:01:58.5]} 23... Rxc8
{[%clk 0:01:06]} 24. Be3 {[%clk 0:01:11.2]} 24... Bxb2 {[%clk 0:01:06.1]} 25.
Rcd1 {[%clk 0:01:09.1]} 25... Ne5 {[%clk 0:00:49.2]} 26. Be4 {[%clk 0:01:10.2]}
26... Nc4 {[%clk 0:00:45.9]} 27. Bc5 {[%clk 0:01:02.9]} 27... a4 {[%clk
0:00:35.2]} 28. Qd3 {[%clk 0:01:03.5]} 28... Bc3 {[%clk 0:00:23.3]} 29. Re2
{[%clk 0:00:59.2]} 29... Nb2 {[%clk 0:00:19.1]} 30. Qd7 {[%clk 0:00:58]} 30...
Nxd1 {[%clk 0:00:17.5]} 31. Qxb7 {[%clk 0:00:58.9]} 31... Re8 {[%clk 0:00:18.3]}
32. Bxc6 {[%clk 0:00:57.1]} 32... Rd8 {[%clk 0:00:11.3]} 33. Be7 {[%clk
0:00:57.7]} 33... Qf4 {[%clk 0:00:05.3]} 34. Bxd8 {[%clk 0:00:55.7]} 34... Qc1
{[%clk 0:00:05.7]} 35. Kh2 {[%clk 0:00:49]} 35... Be5+ {[%clk 0:00:05]} 36. g3
{[%clk 0:00:45.7]} 36... Nxf2 {[%clk 0:00:03.7]} 37. Rxf2 {[%clk 0:00:46.4]}
37... Qe3 {[%clk 0:00:03]} 38. Qxf7+ {[%clk 0:00:46.4]} 1-0

[Event "*** MasterClass Titled Tuesday Blitz"]
[Site "Chess.com"]
[Date "2017.12.12"]
[Round "2"]
[White "Alex_Banzea"]
[Black "1random"]
[Result "0-1"]
[WhiteElo "2210"]
[BlackElo "2139"]
[TimeControl "180+2"]
[EndTime "13:22:57 PST"]
[Termination "1random won by resignation"]

1. e4 {[%clk 0:03:01.9]} 1... d5 {[%clk 0:02:56.7]} 2. exd5 {[%clk 0:03:02.8]}
2... Nf6 {[%clk 0:02:58.1]} 3. Nc3 {[%clk 0:03:04.7]} 3... Nxd5 {[%clk
0:02:59.1]} 4. Nf3 {[%clk 0:03:03.1]} 4... Bg4 {[%clk 0:02:59.5]} 5. Be2 {[%clk
0:03:03.7]} 5... Nf4 {[%clk 0:02:59.8]} 6. O-O {[%clk 0:03:01.8]} 6... Nxe2+
{[%clk 0:03:00.7]} 7. Qxe2 {[%clk 0:03:02.5]} 7... c6 {[%clk 0:03:02.1]} 8. h3
{[%clk 0:03:02.8]} 8... Bxf3 {[%clk 0:03:01.5]} 9. Qxf3 {[%clk 0:03:04.7]} 9...
e6 {[%clk 0:03:03]} 10. Ne4 {[%clk 0:03:02.6]} 10... Be7 {[%clk 0:03:04]} 11.
Rd1 {[%clk 0:03:02.6]} 11... O-O {[%clk 0:03:03.9]} 12. d4 {[%clk 0:03:04.1]}
12... Nd7 {[%clk 0:03:05.5]} 13. c4 {[%clk 0:03:00.5]} 13... Qa5 {[%clk
0:03:00.2]} 14. Bd2 {[%clk 0:03:00.8]} 14... Qb6 {[%clk 0:02:58.2]} 15. Bc3
{[%clk 0:03:01.1]} 15... Nf6 {[%clk 0:02:59.4]} 16. Ng3 {[%clk 0:02:54.4]} 16...
Qc7 {[%clk 0:02:59]} 17. Rd2 {[%clk 0:02:48.4]} 17... a5 {[%clk 0:02:59.6]} 18.
Rad1 {[%clk 0:02:48.8]} 18... a4 {[%clk 0:02:59.3]} 19. Ne2 {[%clk 0:02:43.2]}
19... b5 {[%clk 0:02:58.4]} 20. b3 {[%clk 0:02:40.9]} 20... axb3 {[%clk
0:02:52.9]} 21. axb3 {[%clk 0:02:41]} 21... Ra3 {[%clk 0:02:51.1]} 22. Bb2
{[%clk 0:02:40.9]} 22... Ra2 {[%clk 0:02:51.2]} 23. Nf4 {[%clk 0:02:37.7]} 23...
Qb6 {[%clk 0:02:36]} 24. Nd3 {[%clk 0:02:34.1]} 24... Rfa8 {[%clk 0:02:25.1]}
25. g3 {[%clk 0:02:31.7]} 25... h6 {[%clk 0:02:06]} 26. Kg2 {[%clk 0:02:32.5]}
26... R8a6 {[%clk 0:02:01]} 27. Bc3 {[%clk 0:02:29.2]} 27... bxc4 {[%clk
0:01:59.7]} 28. bxc4 {[%clk 0:02:29.6]} 28... Rxd2 {[%clk 0:01:55.9]} 29. Rxd2
{[%clk 0:02:30.5]} 29... Qb3 {[%clk 0:01:57.5]} 30. Ne5 {[%clk 0:02:31.1]} 30...
Ra3 {[%clk 0:01:43.3]} 31. Rd3 {[%clk 0:02:31.9]} 31... Bf8 {[%clk 0:00:47.9]}
32. Qxc6 {[%clk 0:02:09.5]} 32... Qc2 {[%clk 0:00:26.1]} 33. Qf3 {[%clk
0:02:07.3]} 33... Bd6 {[%clk 0:00:24.2]} 34. Bd2 {[%clk 0:02:05.7]} 34... Ra1
{[%clk 0:00:21]} 35. Rc3 {[%clk 0:01:30.7]} 35... Qxd2 {[%clk 0:00:20.6]} 36.
Qe3 {[%clk 0:01:18.2]} 36... Qxe3 {[%clk 0:00:16.3]} 37. Rxe3 {[%clk 0:01:18.2]}
37... Bxe5 {[%clk 0:00:13]} 38. Rxe5 {[%clk 0:01:18.5]} 38... Rd1 {[%clk
0:00:12.8]} 39. d5 {[%clk 0:01:10.2]} 39... exd5 {[%clk 0:00:13.4]} 40. cxd5
{[%clk 0:01:12.1]} 40... Rxd5 {[%clk 0:00:14.5]} 41. Re7 {[%clk 0:01:12.1]}
41... Rd7 {[%clk 0:00:15.3]} 42. Re1 {[%clk 0:01:12.4]} 42... g5 {[%clk
0:00:16.6]} 43. Re5 {[%clk 0:01:12.1]} 43... Kg7 {[%clk 0:00:17.6]} 44. Re1
{[%clk 0:01:12.8]} 44... Kg6 {[%clk 0:00:19]} 45. Re5 {[%clk 0:01:13.3]} 45...
Rd2 {[%clk 0:00:20]} 46. Re1 {[%clk 0:01:14]} 46... Ra2 {[%clk 0:00:19.8]} 47.
Kf3 {[%clk 0:01:15]} 47... h5 {[%clk 0:00:19.8]} 48. Re5 {[%clk 0:01:13.9]}
48... g4+ {[%clk 0:00:20.3]} 49. hxg4 {[%clk 0:01:15.8]} 49... Rxf2+ {[%clk
0:00:19.4]} 0-1

[Event "*** MasterClass Titled Tuesday Blitz"]
[Site "Chess.com"]
[Date "2017.12.12"]
[Round "2"]
[White "Rsnr"]
[Black "ST-Sandavagur"]
[Result "0-1"]
[WhiteElo "2622"]
[BlackElo "2507"]
[TimeControl "180+2"]
[EndTime "13:23:05 PST"]
[Termination "ST-Sandavagur won by resignation"]

1. d4 {[%clk 0:03:01.5]} 1... Nf6 {[%clk 0:02:59.2]} 2. c4 {[%clk 0:03:03]} 2...
g6 {[%clk 0:03:00.5]} 3. g3 {[%clk 0:03:04.2]} 3... Bg7 {[%clk 0:03:02]} 4. Bg2
{[%clk 0:03:05.7]} 4... O-O {[%clk 0:03:03.6]} 5. Nf3 {[%clk 0:03:06.8]} 5... d6
{[%clk 0:03:05.4]} 6. O-O {[%clk 0:03:08]} 6... Nc6 {[%clk 0:03:07]} 7. Nc3
{[%clk 0:03:09.5]} 7... Bg4 {[%clk 0:03:06.6]} 8. d5 {[%clk 0:03:10.5]} 8... Na5
{[%clk 0:03:07.6]} 9. Nd2 {[%clk 0:03:10.5]} 9... c5 {[%clk 0:03:07.3]} 10. h3
{[%clk 0:03:11.9]} 10... Bd7 {[%clk 0:03:02.2]} 11. Qc2 {[%clk 0:03:13.1]} 11...
a6 {[%clk 0:03:02.7]} 12. b3 {[%clk 0:03:12.8]} 12... b5 {[%clk 0:03:02.1]} 13.
Bb2 {[%clk 0:03:14.1]} 13... Ne8 {[%clk 0:03:00.5]} 14. Rab1 {[%clk 0:03:07.1]}
14... Nc7 {[%clk 0:03:00]} 15. Nd1 {[%clk 0:03:07.1]} 15... Bxb2 {[%clk
0:02:56.9]} 16. Nxb2 {[%clk 0:03:09]} 16... Rb8 {[%clk 0:02:54.2]} 17. Nd3
{[%clk 0:03:09.2]} 17... e6 {[%clk 0:02:53.3]} 18. e4 {[%clk 0:03:10.2]} 18...
f5 {[%clk 0:02:45.8]} 19. exf5 {[%clk 0:03:06.7]} 19... Rxf5 {[%clk 0:02:33.3]}
20. Nf4 {[%clk 0:02:28.2]} 20... exd5 {[%clk 0:01:50.3]} 21. Nxd5 {[%clk
0:02:22.6]} 21... Ne6 {[%clk 0:01:45.4]} 22. Rbe1 {[%clk 0:02:23.8]} 22... Rf7
{[%clk 0:01:45.5]} 23. Ne4 {[%clk 0:02:18.1]} 23... Nd4 {[%clk 0:01:46.3]} 24.
Qc3 {[%clk 0:02:16.5]} 24... b4 {[%clk 0:01:12]} 25. Qd3 {[%clk 0:02:03.7]}
25... Bf5 {[%clk 0:01:07.5]} 26. g4 {[%clk 0:01:42.2]} 26... Bxe4 {[%clk
0:01:07.5]} 27. Qxe4 {[%clk 0:01:44.1]} 27... Nac6 {[%clk 0:00:59.8]} 28. f4
{[%clk 0:01:45]} 28... Qh4 {[%clk 0:00:53.3]} 29. Re3 {[%clk 0:01:42.8]} 29...
Rbf8 {[%clk 0:00:53.1]} 30. Rfe1 {[%clk 0:01:30.8]} 30... g5 {[%clk 0:00:33.4]}
31. Rf1 {[%clk 0:01:07.6]} 31... gxf4 {[%clk 0:00:30.6]} 32. Rxf4 {[%clk
0:01:09.5]} 32... Ne5 {[%clk 0:00:29.7]} 33. Rxf7 {[%clk 0:00:46.7]} 33... Rxf7
{[%clk 0:00:31.6]} 34. Nf4 {[%clk 0:00:48.4]} 34... Qf6 {[%clk 0:00:28.7]} 35.
Qa8+ {[%clk 0:00:38]} 35... Rf8 {[%clk 0:00:28.8]} 36. Bd5+ {[%clk 0:00:29]}
36... Kh8 {[%clk 0:00:28.3]} 0-1